Cogmind - Beta 10.2 @@@ ROGUE MODE // 2021.09.12 @ 16:36:48 Player: John_Oxford Result: Destroyed by D-53 Grenadier with Mini Grenade Launcher Performance ------------- Evolutions (0) 0 Regions Visited (2) 400 Robots Destroyed (16) 80 Value Destroyed (358) 358 Prototype IDs (0) 0 Alien Tech Used (0) 0 Bonus (0) 0 TOTAL SCORE: 838 Bonus ------- None Cogmind --------- Core Integrity 0/250 Matter 300/300 Energy 233/250 System Corruption 2% Temperature Cool (0) Movement Core (650) Ox12 Location -10/Mines Parts ------- > --- POWER (1) -------- Ion Engine > --- PROPULSION (2) --- (None) > --- UTILITY (2) ------ Large Storage Unit Large Storage Unit > --- WEAPON (2) ------- Light Assault Rifle > --- INVENTORY (16) --- Ion Engine Light Treads Light Treads Aluminum Leg Aluminum Leg Aluminum Leg Aluminum Leg Aluminum Leg High-capacity Battery (400) Medium Matter Pod (8) Visual Processing Unit Signal Interpreter ECM Suite Small Laser Datajack Peak State ------------ > --- POWER ------------ Ion Engine > --- PROPULSION ------- Aluminum Leg Aluminum Leg > --- UTILITY ---------- Large Storage Unit Large Storage Unit > --- WEAPON ----------- Medium Laser Light Assault Rifle > --- INVENTORY -------- Ion Engine Light Treads Light Treads Aluminum Leg Aluminum Leg High-capacity Battery Visual Processing Unit EM Pulse Gun Small Laser [Rating: 8] Favorites ----------- Power Ion Engine Engine Ion Engine Propulsion Aluminum Leg Treads Light Treads Leg Aluminum Leg Utility Large Storage Unit Storage Large Storage Unit Weapon Medium Laser Energy Gun Medium Laser Ballistic Gun Light Assault Rifle Build | -11 -10 -10 ------- Run | Scr Mat Min Slots Evolved . | . . . Power . | . . . Propulsion . | . . . Utility . | . . . Weapon . | . . . Parts Attached 13 | 9 4 . Power 2 | 2 . . Engine 2 | 2 . . Core . | . . . Reactor . | . . . Propulsion 3 | 3 . . Treads 1 | 1 . . Leg 2 | 2 . . Wheel . | . . . Hover . | . . . Flight . | . . . Utility 3 | 1 2 . Device . | . . . Storage 3 | 1 2 . Processor . | . . . Hackware . | . . . Protection . | . . . Artifact . | . . . Weapon 5 | 3 2 . Energy Gun 3 | 2 1 . Energy Cannon . | . . . Ballistic Gun 2 | 1 1 . Ballistic Cannon . | . . . Launcher . | . . . Special Weapon . | . . . Impact Weapon . | . . . Slashing Weapon . | . . . Piercing Weapon . | . . . Special Melee Weapon . | . . . Unidentified Prototypes . | . . . Parts Lost 5 | . 2 3 Power . | . . . Propulsion 2 | . . 2 Utility . | . . . Weapon 3 | . 2 1 Highest Loss Streak 2 | . 1 2 Average Slot Usage (%) 95 | . 97 85 Engine 14 | . 14 14 Leg 25 | . 28 14 Storage 26 | . 26 28 Energy Gun 13 | . 13 14 Ballistic Gun 14 | . 14 14 Naked Turns . | . . . Heaviest Build 41 | 13 41 40 Greatest Support 20 | 20 20 20 Greatest Overweight (x) 3 | . 2 3 Average Overweight (x) 1 | . . 2 Largest Inventory Capacity 16 | 6 16 16 Average Capacity 13 | 5 14 16 Most Carried 15 | 4 15 15 Average Carried 9 | 3 9 15 Final Capacity 16 | 6 16 16 Final Carried 15 | 3 15 15 Class Distribution -------------------- 100% | Mutant Dominant Class ---------------- Mutant | -10/Materials Mutant | -10/Mines Resources | -11 -10 -10 ----------- Run | Scr Mat Min Matter Collected 402 | 193 209 . Remotely . | . . . Salvage Created 438 | . 402 36 Parts 31 | . 28 3 Haulers Intercepted . | . . . Recyclers Shooed . | . . . Parts Field Recycled . | . . . Retrieved Matter . | . . . Parts Self-Destructed . | . . . Prevented . | . . . Kills | -11 -10 -10 ------- Run | Scr Mat Min Combat Hostiles Destroyed 13 | . 10 3 Guns 10 | . 10 . AOE 3 | . . 3 Classes Destroyed 4 | . 4 . Builder 1 | . 1 . Watcher 2 | . 2 . Swarmer 6 | . 3 3 Grunt 7 | . 7 . Best Kill Streak 5 | . 5 3 Combat Bots Only 3 | . 3 3 Max Kills in Single Turn 2 | . 2 2 Gunslinging 1 | . 1 . Exploded 2 | . . 2 Melee . | . . . Uniques/NPCs Destroyed . | . . . Combat | -11 -10 -10 -------- Run | Scr Mat Min Damage Taken 767 | . 530 237 Core 250 | . 155 95 Absorbed by Shields . | . . . Core Remaining (%) 100 | 100 . . Volleys Fired 44 | . 37 7 Largest 2 | . 2 2 Hottest 70 | . 70 60 Shots Fired 82 | . 68 14 Gun 82 | . 68 14 Cannon . | . . . Launcher . | . . . Special . | . . . Kinetic 42 | . 35 7 Thermal 30 | . 30 . Explosive . | . . . Electromagnetic 10 | . 3 7 Robot Hit Streak 13 | . 13 3 Robot Miss Streak 4 | . 4 3 Penetration Max . | . . . Secondary Targets 4 | . 4 . Max Gunslinging Chain 1 | . 1 . Shots Hit Robots 55 | . 48 7 Core Hits 25 | . 21 4 Critical Hits . | . . . Critical Kills . | . . . Critical Parts Destroyed . | . . . Melee Attacks . | . . . Impact . | . . . Slashing . | . . . Piercing . | . . . Sneak Attacks . | . . . Combat Hostiles . | . . . Follow-up Attacks . | . . . Damage Inflicted 728 | . 568 160 Guns 603 | . 568 35 Cannons . | . . . Explosions 125 | . . 125 Melee . | . . . Ramming . | . . . Kinetic 252 | . 252 . Thermal 413 | . 288 125 Explosive . | . . . Electromagnetic 63 | . 28 35 Impact . | . . . Slashing . | . . . Piercing . | . . . Highest Corruption 2 | . 2 2 Average Corruption 1 | . 1 2 Corruption Purged . | . . . Effects 6 | . 6 . Message Errors 1 | . 1 . Heat Flow Errors 1 | . 1 . Data Loss (minor) 3 | . 3 . Targeting Errors 1 | . 1 . Overload Shots . | . . . Overflow Damage . | . . . Projectiles . | . . . Explosions . | . . . Melee . | . . . Knockbacks . | . . . Impact . | . . . Kinetic . | . . . Secondary . | . . . Self-Inflicted Damage 8 | . . 8 Shots 1 | . . 1 Rammed . | . . . Targets Rammed . | . . . Kicked . | . . . Crushed . | . . . Highest Temperature 165 | . 165 52 Average Temperature 57 | . 60 32 Received Heat Transfer 234 | . 234 . Siege Activations . | . . . Robots Corrupted . | . . . Combat Hostiles . | . . . Parts Fried . | . . . Impact Corruptions . | . . . Robots Melted . | . . . Combat Hostiles . | . . . Parts Melted 3 | . 3 . Heat Transferred 901 | . 851 50 Parts Sabotaged . | . . . Parts Stolen . | . . . Parts Stripped . | . . . Power Chain Reactions 2 | . . 2 Missiles Intercepted . | . . . Alert | -11 -10 -10 ------- Run | Scr Mat Min Peak Influence 214 | . 214 124 Initial 34 | . . 34 Average 80 | . 81 121 Maximum Alert Level 1 | . 1 . Low Security (%) 96 | 100 95 100 Level 1 3 | . 4 . Level 2 . | . . . Level 3 . | . . . Level 4 . | . . . Level 5 . | . . . High Security . | . . . Max Security . | . . . Squads Dispatched 1 | . 1 . Investigation 1 | . 1 . Extermination . | . . . Reinforcement . | . . . Assault . | . . . Garrison . | . . . Intercept . | . . . Construction Impeded . | . . . Haulers Reinforced . | . . . Stealth | -11 -10 -10 --------- Run | Scr Mat Min Distress Signals 3 | . 3 . Communications Jammed . | . . . Distress Signals . | . . . Times Spotted 20 | . 15 5 Peak Tracking Total 5 | . 5 3 Tactical Retreats . | . . . Traps | -11 -10 -10 ------- Run | Scr Mat Min Traps Triggered 3 | . 3 . Indirectly . | . . . Trap Hack Attempts . | . . . Triggered . | . . . Disarmed . | . . . Reprogrammed . | . . . Reused . | . . . Traps Extracted . | . . . Installed . | . . . Triggered . | . . . Machines | -11 -10 -10 ---------- Run | Scr Mat Min Machines Disabled 1 | . . 1 Max in Single Turn 1 | . . 1 Machines Sabotaged . | . . . Garrisons Compromised . | . . . Overloaded Fab Kills . | . . . Fab Network Shutdowns . | . . . Hacking | -11 -10 -10 --------- Run | Scr Mat Min Machines Accessed . | . . . Terminals . | . . . Fabricators . | . . . Repair Stations . | . . . Recycling Units . | . . . Scanalyzers . | . . . Garrison Access . | . . . Total Hacks . | . . . Successful . | . . . Failed . | . . . Catastrophic . | . . . Database Lockouts . | . . . Manual . | . . . Terminals . | . . . Fabricators . | . . . Repair Stations . | . . . Recycling Units . | . . . Scanalyzers . | . . . Garrison Access . | . . . Terminal Hacks . | . . . Fabricator Hacks . | . . . Repair Station Hacks . | . . . Recycling Unit Hacks . | . . . Scanalyzer . | . . . Garrison Access Hacks . | . . . Unauthorized Hacks . | . . . Terminals . | . . . Fabricators . | . . . Repair Stations . | . . . Recycling Units . | . . . Scanalyzers . | . . . Garrison Access . | . . . Data Cores Recovered . | . . . Used . | . . . Hacking Detections . | . . . Full Trace Events . | . . . Feedback Events . | . . . Feedback Blocked . | . . . Robot Schematics Acquired . | . . . Robots Built . | . . . Matter . | . . . Time . | . . . Total Robot Build Rating . | . . . Part Schematics Acquired . | . . . Parts Built . | . . . Matter . | . . . Time . | . . . Total Part Build Rating . | . . . Parts Repaired . | . . . Time . | . . . Parts Recycled . | . . . Recycled Matter . | . . . Retrieved Matter . | . . . Retrieved Components . | . . . Parts Scanalyzed . | . . . Part Schematics Acquired . | . . . Parts Damaged . | . . . Bothacking | -11 -10 -10 ------------ Run | Scr Mat Min Used RIF Installer . | . . . Robots Hacked . | . . . Non-combat . | . . . Combat . | . . . Robot Hacks Applied . | . . . Relay Couplers Released . | . . . Robots Rewired . | . . . Allies Hacked . | . . . Hacks Repelled . | . . . Allies | -11 -10 -10 -------- Run | Scr Mat Min Total Allies 3 | . . 3 Largest Group 3 | . . 3 Highest-Rated Group 40 | . . 40 Highest-Rated Ally 16 | . . 16 Total Orders . | . . . Ally Attacks 1 | . . 1 Total Damage 14 | . . 14 Kills . | . . . Allies Corrupted . | . . . Allies Melted . | . . . Intel | -11 -10 -10 ------- Run | Scr Mat Min Robot Analysis Total . | . . . Derelict Logs Recovered . | . . . Drone Launches . | . . . Drone Recoveries . | . . . Exploration | -11 -10 -10 ------------- Run | Scr Mat Min Turns Passed 962 | 90 700 172 Spaces Moved 526 | 61 391 74 Core 8 | 8 . . Treads 11 | 11 . . Legs 507 | 42 391 74 Wheels . | . . . Hover . | . . . Flight . | . . . Fastest Speed 50 | 50 120 150 Average Speed 152 | 118 147 209 Slowest Speed 210 | 160 180 210 Overloaded Moves . | . . . Propulsion Burnouts . | . . . Robots Hopped . | . . . Cave-ins Triggered . | . . . Exploration Rate (%) 19 | 4 36 18 Regions Visited 2 Branch Regions 1 Pre-discovered Areas . | . . . Known Exits Taken . | . . . Unknown Exits Taken 2 | 1 1 . Scrap Searched . | . . . Spaces Dug . | . . . Terrain Destroyed 9 | . . 9 Melee . | . . . Projectile . | . . . AOE 9 | . . 9 Terrain Rammed . | . . . Walls Destroyed . | . . . Machines Disabled . | . . . Actions | -11 -10 -10 --------- Run | Scr Mat Min Total 608 | 78 449 81 Wait 2 | . 2 . Move 524 | 60 390 74 Hop . | . . . Pick Up 20 | 5 15 . Fast Attach 6 | 5 1 . Attach 6 | 3 3 . Detach 2 | 2 . . Swap 1 | 1 . . Drop 3 | 2 1 . Fire 44 | . 37 7 Melee . | . . . Ram . | . . . Kick . | . . . Crush . | . . . Escape Stasis . | . . . Rewire . | . . . Trap . | . . . Miscellaneous . | . . . Route ------- -11/Scrapyard -10/Materials -10/Mines (discovered 1 exit: [*Mat]) History --------- Turn | Location | Event 10 | -11/Scrapyard | Discovered new exit (range 16) 91 | -11/Scrapyard | Entered Materials 309 | -10/Materials | Build established: Mutant 454 | -10/Materials | Discovered new exit (range 10) 700 | -10/Materials | Core integrity fell below 50% 791 | -10/Materials | Entered Mines 890 | -10/Mines | Assisted by bots powering up and referring to "LRC-V3" 913 | -10/Mines | Discovered new exit (range 15) 958 | -10/Mines | Assembled infested the area 962 | -10/Mines | Core integrity fell below 20% 963 | -10/Mines | Destroyed by D-53 Grenadier with Mini Grenade Launcher Last Messages --------------- 00837_ U-05 Engineer lays Concrete. 00841_ U-05 Engineer builds a Wall. 00851_ U-05 Engineer lays Concrete. 00878_ K-01 Serf collects debris. 00890_ Trooper 1a: "Hello LRC-V3. What is your command?" 00890_ Mercenary 1a: "Hello LRC-V3. What is your command?" 00890_ Trooper 1b: "Hello LRC-V3. What is your command?" 00890_ K-01 Serf collects debris. You have a new controllable ally. Review and give out orders from the Allies menu (F6). 00913_ EXIT=FOUND 00958_ ALERT: Infestation in the mines, dispatching Demolisher response squad. 00961_ C-30 ARC bursts open, deploying its payload. 00961_ D-53 Grenadier unfolds itself. 00961_ K-01 Serf destroyed. 00961_ Aluminum Leg destroyed. 00961_ Trooper 1b destroyed. 00961_ Mercenary 1a destroyed. 00963_ EM Pulse Gun destroyed. Map ----- +----------------------------------------------------+ | ?????????????????????????????????????????????????? | | ?????????????????????????????????????????????????? | | ?????????????????????????????????????????????????? | | ????????? ???????????????????????????????????????? | | ????????? #??????????????????????????????????????? | | #####???? #?????????????????????????????????????? | | #???? ?????????????????????????????????????? | | #???? ?????????????????????????????????????? | | #???? ?????????????????????????????????????? | | """ #???? ?????????????????????????????????????? | | ##??? ???????????????###???????????????????? | | ##???# ??????????????# ##??????????????????? | | % ##???# #?????????????? #??????????????????? | | ##???# #?????????????? #??????????????????? | | ######### #????????###### #??????????????????? | | #### ## #???????## ## < #??????????????????? | | ##?# ## ######### #???????????????????? | | #??# """ #????????????????????? | | #??# """ d #?????????????????????? | | #??# #### """d%#??????????????????????? | | #??# #??# #####??????????????????? | | #### ##??## #??????????????????? | | ###????##### #??????????????????? | | # #######??????????## =% ##?????????????????? | | # #?????????????????# * #?????????????????? | | # #??????????????????# @ = #??????????????????? | | # #??????????????????# = #??????????????????? | | # #??????????????????# g #??????????????????? | | # #??????????????????## # ?????????????????? | | # ???????????????????#### # ## ???????????????? | | ###???????????????????????### #?? #??????????????? | | ??????????????????????????????#??????????????????? | | ?????????????????????????????????????????????????? | | ?????????????????????????????????????????????????? | | ?????????????????????????????????????????????????? | | ?????????????????????????????????????????????????? | | ?????????????????????????????????????????????????? | | ?????????????????????????????????????????????????? | | ?????????????????????????????????????????????????? | | ?????????????????????????????????????????????????? | | ?????????????????????????????????????????????????? | | ?????????????????????????????????????????????????? | | ?????????????????????????????????????????????????? | | ?????????????????????????????????????????????????? | | ?????????????????????????????????????????????????? | | ?????????????????????????????????????????????????? | | ?????????????????????????????????????????????????? | | ?????????????????????????????????????????????????? | | ?????????????????????????????????????????????????? | | ?????????????????????????????????????????????????? | +----------------------------------------------------+ Best States ------------- Heat Dissipation 25 Energy Generation 10 Energy Capacity 250 Matter Stores 300 Matter Capacity 300 Sight Range 16 Terrain Scan Density 10 Evasion (%) 50 Recoil Reduction 1 Item Schematics ----------------- None Robot Schematics ------------------ None Fabricated ------------ Nothing Alien Tech Used ----------------- None Achievements -------------- None Challenges ------------ None Game ------ Seed PrecisionBackupNanosword Manual? 0 Play Time 00:06:18 Cumulative 5.2 hours Start 2021.09.12 @ 16:31:12 End 2021.09.12 @ 16:36:48 Sessions 1 Manual Loads 0 Difficulty Rogue Special Mode None Game No. 17 Rogue 17 Adventurer 0 Explorer 0 Win Type - Total 0 Types 0/0/0/0/0/0/0/0/0 Lore% 3 Gallery% 15 Achievement% 11 Wizard Run 0 Options --------- ASCII 0 Keyboard 0 Movement Arrows Keybinds 0 Fullscreen 1 Font 24/Smallcaps Map View 76x50 Tactical HUD 1 Map Filters NONE Filters NONE Steam 1 RUN: 3de9ccbf-7a95-48e2-aed3-7d4f74c7b8f5